Cogmind - Beta 10 @@@ ROGUE MODE // 2020.09.18 @ 13:19:25 // Winter2019/RPGLIKE Player: Hermelin Result: Destroyed by Z-Imprinter with Zionite Laser-M Performance ------------- Evolutions (4) 2000 Regions Visited (19) 3800 Robots Destroyed (305) 1525 Value Destroyed (8204) 8204 Prototype IDs (247) 4940 Alien Tech Used (0) 0 Bonus (5440) 5440 TOTAL SCORE: 25909 Bonus ------- High Alert Combat Kills 1485 Follower Combat Kills 975 Aligned with FarCom 300 Met Data Miner 300 Used Data Conduit 3000 Friendly Fire -620 Cogmind --------- Core Integrity 0/850 Matter 44/300 Energy 1107/1135 System Corruption 0% Temperature Cool (173) Movement Hovering (121) Ox1 Location -6/Deep Caves Parts ------- > --- POWER (2) -------- Cooled Deuterium Engine Antimatter Reactor > --- PROPULSION (3) --- Linear Gravjet Linear Gravjet Combat Antigrav System > --- UTILITY (11) ----- Improved Energy Well Makeshift Salvage Targeting Computer Advanced Core Analyzer Improved Armor Integrity Analyzer Advanced Weapon Cycler Makeshift Thermal Plating 8R-AWN's Armor/EX Advanced Shield Generator System Mapper Ghost Barrier > --- WEAPON (3) ------- Force Rifle 8R-AWN's Boregun Phasing Sabre > --- INVENTORY (6) ---- Molecular Deconstructor Peak State ------------ > --- POWER ------------ Cooled Deuterium Engine Antimatter Reactor > --- PROPULSION ------- Linear Gravjet Linear Gravjet Combat Antigrav System > --- UTILITY ---------- Improved Energy Well Improved Signal Interpreter Long-range Terrain Scanner Advanced Core Analyzer Improved Armor Integrity Analyzer Advanced Weapon Cycler 8R-AWN's Armor/EX Advanced Shield Generator System Mapper Ghost Barrier > --- WEAPON ----------- 8R-AWN's Boregun Molecular Deconstructor > --- INVENTORY -------- Makeshift Salvage Targeting Computer Makeshift Thermal Plating Phasing Sabre [Rating: 139] Favorites ----------- Power Cooled Ion Engine Engine Cooled Ion Engine Power Core Enhanced Nuclear Core Reactor Antimatter Reactor Propulsion Combat Airjet Treads Light Treads Leg Advanced Myomer Leg Hover Unit Combat Airjet Flight Unit Improved VTOL Module Utility Advanced Weapon Cycler Device Advanced Weapon Cycler Storage Improved Energy Well Processor Advanced Core Analyzer Hackware Hacking Suite Protection Hardened Light Armor Plating Weapon 8R-AWN's Boregun Energy Gun Improved EM Shotgun Ballistic Gun 8R-AWN's Boregun Ballistic Cannon Mini Assault Cannon Launcher Rocket Launcher Special Weapon Molecular Deconstructor Slashing Weapon Phasing Sabre Piercing Weapon Lance Special Melee Weapon Improved Datajack Build | -11 -10 -10 -9 -9 -9 -8 -8 -7 -7 -7 -7 -7 -7 -6 -6 -6 -6 -6 -6 ------- Run | Scr Mat Min Mat Min Exi Min Mat Fac Was Fac Low Low Dat Pro Fac Low Low Zio Dee Slots Evolved 15 | 3 2 1 4 . . 1 2 . . 1 . . . . . . 1 . . Power 1 | . . . 1 . . . . . . . . . . . . . . . . Propulsion 2 | 1 . . . . . . 1 . . . . . . . . . . . . Utility 10 | 1 1 1 3 . . 1 1 . . 1 . . . . . . 1 . . Weapon 2 | 1 1 . . . . . . . . . . . . . . . . . . Parts Attached 161 | 7 8 2 22 1 23 2 16 18 4 16 . . 4 3 9 . 4 18 4 Power 20 | 1 . . 7 . . 1 1 4 1 5 . . . . . . . . . Engine 14 | 1 . . 7 . . 1 1 1 . 3 . . . . . . . . . Core 3 | . . . . . . . . 3 . . . . . . . . . . . Reactor 3 | . . . . . . . . . 1 2 . . . . . . . . . Propulsion 26 | 2 2 1 1 . 6 . 7 4 . . . . . . 2 . 1 . . Treads 4 | 2 . . . . 2 . . . . . . . . . . . . . . Leg 2 | . . . . . 2 . . . . . . . . . . . . . . Wheel . | . . . . . . . . . . . . . . . . . . . . Hover 18 | . 2 1 1 . 2 . 5 4 . . . . . . 2 . 1 . . Flight 2 | . . . . . . . 2 . . . . . . . . . . . . Utility 67 | 2 4 1 7 1 13 1 7 3 . 7 . . 2 2 5 . 2 6 4 Device 34 | 1 2 . 2 1 7 1 5 2 . 3 . . . 1 3 . 2 2 2 Storage 1 | . . . . . . . . . . . . . . . 1 . . . . Processor 6 | 1 . . . . 2 . . . . 1 . . . 1 . . . 1 . Hackware 12 | . 1 . 1 . 2 . 1 1 . 3 . . 2 . 1 . . . . Protection 14 | . 1 1 4 . 2 . 1 . . . . . . . . . . 3 2 Artifact . | . . . . . . . . . . . . . . . . . . . . Weapon 48 | 2 2 . 7 . 4 . 1 7 3 4 . . 2 1 2 . 1 12 . Energy Gun 17 | 1 1 . 3 . . . . 2 1 3 . . . 1 1 . . 4 . Energy Cannon . | . . . . . . . . . . . . . . . . . . . . Ballistic Gun 15 | 1 1 . 4 . 3 . . 2 1 . . . 1 . . . . 2 . Ballistic Cannon 1 | . . . . . . . . 1 . . . . . . . . . . . Launcher 2 | . . . . . 1 . . 1 . . . . . . . . . . . Special Weapon 2 | . . . . . . . . . . . . . . . . . . 2 . Impact Weapon . | . . . . . . . . . . . . . . . . . . . . Slashing Weapon 2 | . . . . . . . . . . . . . . . . . . 2 . Piercing Weapon 6 | . . . . . . . . . 1 1 . . . . 1 . 1 2 . Special Melee Weapon 3 | . . . . . . . 1 1 . . . . 1 . . . . . . Unidentified Prototypes 19 | . . . 4 1 6 . 2 4 1 . . . . . . . . 1 . Parts Lost 1 | . . . . . . . . . . . . . . 1 . . . . . Power . | . . . . . . . . . . . . . . . . . . . . Propulsion . | . . . . . . . . . . . . . . . . . . . . Utility 1 | . . . . . . . . . . . . . . 1 . . . . . Weapon . | . . . . . . . . . . . . . . . . . . . . Highest Loss Streak 1 | . . . . . . . . . . . . . . 1 . . . . . Average Slot Usage (%) 99 | . 99 99 99 100 99 99 99 99 100 99 100 100 100 98 100 100 97 93 97 Engine 8 | . 12 10 12 14 14 13 11 1 . 4 5 5 5 5 5 5 5 5 5 Core 1 | . . . . . . . . 9 9 . . . . . . . . . . Reactor 1 | . . . . . . . . . 1 4 5 5 5 5 5 5 5 5 5 Hover 15 | . 21 20 14 14 11 13 17 17 17 16 16 16 16 16 16 16 15 15 15 Device 20 | . 13 10 15 21 19 24 24 23 23 23 27 27 27 26 22 22 22 17 12 Processor 8 | . . . . . 2 13 11 11 11 11 16 16 16 20 22 16 15 15 18 Hackware 12 | . 10 10 10 7 5 13 13 17 17 19 11 11 11 6 10 11 10 10 10 Protection 7 | . 6 18 21 21 21 . . . . . . . . . . . . 4 6 Energy Gun 5 | . 12 10 7 7 7 6 5 3 3 2 . . . 4 1 5 5 4 5 Ballistic Gun 12 | . 18 20 14 14 12 13 11 10 11 11 11 11 10 11 11 11 7 4 5 Naked Turns . | . . . . . . . . . . . . . . . . . . . . Heaviest Build 82 | 10 17 22 47 48 64 44 44 44 52 59 58 58 58 58 59 59 59 82 80 Greatest Support 79 | 45 45 49 49 49 57 57 79 79 61 61 61 61 61 61 61 59 59 59 59 Greatest Overweight (x) 2 | . . . . . 2 . . 1 . . . . . . . . 1 1 1 Average Overweight (x) . | . . . . . . . . . . . . . . . . . . . . Largest Inventory Capacity 6 | 2 2 2 3 4 4 4 4 4 4 6 6 6 6 6 6 6 6 6 6 Average Capacity 3 | 2 2 2 2 3 4 4 4 4 4 4 6 6 6 6 6 6 6 6 6 Most Carried 6 | 2 2 2 3 4 4 4 4 4 4 6 6 6 6 6 6 6 6 6 6 Average Carried 3 | 1 1 1 2 3 3 3 3 3 4 4 6 6 5 6 5 6 5 5 4 Final Capacity 6 | 2 2 2 3 4 4 4 4 4 4 6 6 6 6 6 6 6 6 6 6 Final Carried 6 | 2 2 2 3 4 4 4 4 4 4 6 6 6 6 6 6 6 6 6 2 Class Distribution -------------------- 16% | Mutant 13% | Scavenger-Mutant 9% | Hacker-Mutant 9% | Hacker-Tank 7% | Hacker-Gunner 7% | Wizard-Mutant 5% | Wizard-Scout 5% | Scavenger-Gunner 5% | Wizard-Ninja 4% | Hacker-Scout 3% | Scavenger-Tank 3% | Scavenger-Skirmisher Dominant Class ---------------- Scavenger-Skirmisher | -10/Materials Scavenger-Tank | -10/Mines Hacker-Tank | -9/Materials Hacker-Scout | -9/Mines Scavenger-Mutant | -9/Exiles Scavenger-Gunner | -8/Mines Scavenger-Mutant | -8/Materials Hacker-Gunner | -7/Factory Hacker-Mutant | -7/Waste Wizard-Mutant | -7/Factory Hacker-Ninja | -7/Lower Caves Hacker-Ninja | -7/Lower Caves Hacker-Ninja | -7/Data Miner Scavenger-Scout | -6/Proximity Caves Wizard-Ninja | -6/Factory Wizard-Scout | -6/Lower Caves Wizard-Scout | -6/Lower Caves Wizard-Ninja | -6/Zion Wizard-Scout | -6/Deep Caves Resources | -11 -10 -10 -9 -9 -9 -8 -8 -7 -7 -7 -7 -7 -7 -6 -6 -6 -6 -6 -6 ----------- Run | Scr Mat Min Mat Min Exi Min Mat Fac Was Fac Low Low Dat Pro Fac Low Low Zio Dee Matter Collected 7081 | 288 249 116 964 123 765 278 661 907 240 900 148 . 184 330 120 108 114 586 . Remotely . | . . . . . . . . . . . . . . . . . . . . Salvage Created 12193 | 51 525 123 1721 231 498 459 1446 1082 2206 1713 162 . 294 494 127 42 168 753 98 Parts 801 | . 41 20 131 15 73 22 96 96 37 91 17 . 33 27 13 9 9 58 13 Haulers Intercepted 12 | . 2 . 3 . . . 5 2 . . . . . . . . . . . Recyclers Shooed 2 | . . . . . . . . 2 . . . . . . . . . . . Parts Field Recycled . | . . . . . . . . . . . . . . . . . . . . Retrieved Matter . | . . . . . . . . . . . . . . . . . . . . Parts Self-Destructed 41 | . . . . . . . . . . . 17 . . 16 . 4 4 . . Prevented 11 | . . . . . . . . . . . . . . . . 11 . . . Kills | -11 -10 -10 -9 -9 -9 -8 -8 -7 -7 -7 -7 -7 -7 -6 -6 -6 -6 -6 -6 ------- Run | Scr Mat Min Mat Min Exi Min Mat Fac Was Fac Low Low Dat Pro Fac Low Low Zio Dee Combat Hostiles Destroyed 204 | 3 15 11 45 7 7 10 27 17 6 25 4 . 4 8 3 3 3 4 2 Melee 2 | . . . . . . . . . . 2 . . . . . . . . . Guns 189 | 3 14 11 41 6 4 10 25 17 6 23 4 . 4 8 3 3 3 2 2 AOE 11 | . 1 . 4 1 3 . 2 . . . . . . . . . . . . Classes Destroyed 23 | 1 5 . 6 . 2 1 . 2 1 2 . . . 1 . . . 1 1 Worker 13 | . . . 3 . . . 3 3 . 4 . . . . . . . . . Builder 9 | . . . . . . . . 4 . 5 . . . . . . . . . Tunneler 1 | . . . 1 . . . . . . . . . . . . . . . . Hauler 12 | . 2 . 3 . . . 5 2 . . . . . . . . . . . Recycler 9 | . . . 2 1 . . . 6 . . . . . . . . . . . Operator 7 | . 2 . 2 . . . . 1 . . . . . 1 1 . . . . Turret 1 | . . . . . 1 . . . . . . . . . . . . . . Watcher 12 | . 3 . 4 . . . 4 . . 1 . . . . . . . . . Swarmer 60 | . 6 8 14 4 . 3 5 6 . 1 . . . 7 1 3 2 . . Grunt 65 | . 9 . 17 3 1 6 11 2 . 14 2 . . . . . . . . Brawler 4 | . . . 2 . . . 1 . . 1 . . . . . . . . . Duelist 5 | . . . 2 . . . . . . 3 . . . . . . . . . Protector 1 | . . . . . . . . . . 1 . . . . . . . . . Sentry 31 | . . . 10 . . . 8 6 . 5 1 . . . 1 . . . . Hunter 6 | . . . . . . 1 2 2 . . . . . . 1 . . . . Programmer 2 | . . . . . . . . 1 . . 1 . . . . . . . . Compactor 6 | . . . . . . . . . 6 . . . . . . . . . . Enhanced Grunt 4 | . . . . . . . . . . . . . 4 . . . . . . Zionite 30 | . . . . . 8 . . . . . . . . . . . . 22 . Z-Light 2 | . . . . . . . . . . . . . . . . . . . 2 Thief 1 | . . . . . . . . . . . . . . . . . 1 . . Master Thief 1 | . . . . . . . . . . . . . . 1 . . . . . Assembled 13 | 3 . 3 . . 7 . . . . . . . . . . . . . . Thug 1 | . . . . . . . . . . . . . . . . . . 1 . Martyr 1 | . . . . . . . . . . 1 . . . . . . . . . Mutant 2 | . . . . . . . . . . . . . . . . . . 2 . Best Kill Streak 12 | 1 6 3 9 3 5 5 7 12 6 11 3 . 5 4 3 3 2 9 2 Combat Bots Only 8 | 1 6 3 6 3 5 5 7 4 6 8 3 . 4 4 3 3 2 2 2 Max Kills in Single Turn 5 | 1 2 1 3 2 2 3 2 5 1 3 2 . 1 1 1 1 1 1 1 Gunslinging 1 | . 1 . . 1 . 1 . 1 . 1 . . . . . . . . . Exploded 3 | . 1 . 3 1 2 . 1 . . . . . . . . . . . . Melee 1 | . . . . . . . . . . 1 . . . . . . . . . Uniques/NPCs Destroyed 4 | . . . . . 2 . . . . . . . 1 . . . . 1 . 8R-AWN (-9/Exiles) EX-BIN (-9/Exiles) EX-DEC (-9/Exiles) EX-HEX (-9/Exiles) Data Miner (-7/Data Miner) 1C-UTU (-6/Zion) Combat | -11 -10 -10 -9 -9 -9 -8 -8 -7 -7 -7 -7 -7 -7 -6 -6 -6 -6 -6 -6 -------- Run | Scr Mat Min Mat Min Exi Min Mat Fac Was Fac Low Low Dat Pro Fac Low Low Zio Dee Damage Taken 8021 | 25 415 211 1282 122 705 194 432 763 . 882 43 . 789 232 128 129 192 390 1087 Core 5667 | 22 326 137 814 64 471 153 340 578 . 689 34 . 644 188 99 101 153 223 631 Absorbed by Shields 2715 | . . . 373 51 263 72 142 253 . 342 15 . 225 85 137 131 84 145 397 Redirected to Core 4838 | 11 272 92 626 57 355 139 311 558 . 614 34 . 541 131 82 81 123 223 588 Core Remaining (%) 96 | 96 . 100 . . . 91 100 . . . . . . 93 . . . . . Volleys Fired 911 | 6 53 25 130 15 136 33 91 83 12 74 8 . 12 33 10 15 23 116 36 Largest 3 | 2 3 3 3 3 3 3 3 3 2 3 2 . 2 3 3 1 3 2 2 Hottest 140 | 60 85 85 91 91 91 105 105 110 60 140 60 . 60 140 140 80 140 110 110 Shots Fired 1705 | 9 116 73 323 37 200 72 153 173 24 157 16 . 24 82 22 15 39 122 48 Gun 1683 | 9 116 73 323 37 196 72 153 173 24 157 16 . 24 82 22 15 39 104 48 Cannon . | . . . . . . . . . . . . . . . . . . . . Launcher 4 | . . . . . 4 . . . . . . . . . . . . . . Special 18 | . . . . . . . . . . . . . . . . . . 18 . Kinetic 1130 | 6 63 48 251 30 105 43 86 128 24 132 16 . 24 50 20 3 16 49 36 Thermal 161 | . . . . . . . . . . 25 . . . 32 2 12 23 55 12 Explosive 4 | . . . . . 4 . . . . . . . . . . . . . . Electromagnetic 392 | 3 53 25 72 7 91 29 67 45 . . . . . . . . . . . Robot Hit Streak 24 | 6 8 7 24 6 22 8 18 15 4 15 3 . 5 3 8 6 3 17 7 Robot Miss Streak 10 | 1 4 4 6 2 6 6 6 10 1 5 2 . 2 7 4 2 4 4 8 Penetration Max 2 | . . . . . . 1 2 1 1 2 1 . 1 2 . . . 1 . Secondary Targets 35 | . 4 2 8 4 2 3 . 3 . 6 . . 1 1 . . 1 . . Max Gunslinging Chain 2 | . 1 1 1 1 1 1 . 1 . 2 . . 1 1 . . 1 . . Shots Hit Robots 1045 | 7 63 34 195 25 161 37 107 97 16 108 7 . 20 32 13 9 19 75 20 Core Hits 554 | 6 32 13 94 10 73 26 73 62 12 68 5 . 12 17 6 4 6 30 5 Critical Hits 225 | . 1 . 1 . 11 15 29 27 11 55 6 . 10 14 10 2 7 17 9 Critical Kills 81 | . 1 . . . 1 4 12 11 6 20 4 . 4 6 4 . 2 4 2 Critical Parts Destroyed 112 | . . . 1 . 4 9 14 13 . 31 2 . 5 7 5 2 4 10 5 Melee Attacks 35 | . . . . . . . 1 12 . 14 2 . 3 . 2 . 1 . . Impact . | . . . . . . . . . . . . . . . . . . . . Slashing . | . . . . . . . . . . . . . . . . . . . . Piercing 20 | . . . . . . . . . . 14 2 . 1 . 2 . 1 . . Sneak Attacks 14 | . . . . . . . 1 9 . 1 . . 3 . . . . . . Combat Hostiles 1 | . . . . . . . . 1 . . . . . . . . . . . Follow-up Attacks . | . . . . . . . . . . . . . . . . . . . . Damage Inflicted 19176 | 87 1064 391 2756 287 2060 609 2245 2224 322 2761 182 . 526 648 298 227 435 1638 416 Guns 16765 | 87 957 391 2556 246 1534 609 2034 1390 322 2380 182 . 415 648 298 227 435 1638 416 Cannons . | . . . . . . . . . . . . . . . . . . . . Explosions 1976 | . 107 . 200 41 526 . 211 834 . 57 . . . . . . . . . Melee 435 | . . . . . . . . . . 324 . . 111 . . . . . . Ramming . | . . . . . . . . . . . . . . . . . . . . Kinetic 10275 | 55 382 214 1660 149 1087 347 1005 779 322 1900 182 . 415 364 271 20 122 729 272 Thermal 3180 | . 107 . 200 41 108 . 211 149 . 480 . . . 284 27 207 313 909 144 Explosive 1103 | . . . . . 418 . . 685 . . . . . . . . . . . Electromagnetic 4183 | 32 575 177 896 97 447 262 1029 611 . 57 . . . . . . . . . Impact . | . . . . . . . . . . . . . . . . . . . . Slashing . | . . . . . . . . . . . . . . . . . . . . Piercing 435 | . . . . . . . . . . 324 . . 111 . . . . . . Highest Corruption 1 | . . . . . . . 1 . . . . . . . 1 . . 1 1 Average Corruption 1 | . . . . . . . 1 . . . . . . . 1 . . 1 1 Corruption Purged 2 | . . . . . . . . . . . . . . . 1 . . . 1 Effects 2 | . . . . . . . . . . . . . . . 1 . . . 1 Message Errors 1 | . . . . . . . . . . . . . . . . . . . 1 Energy Discharges 1 | . . . . . . . . . . . . . . . 1 . . . . Overload Shots . | . . . . . . . . . . . . . . . . . . . . Overflow Damage 63 | . 14 . . . 19 . . 21 . 9 . . . . . . . . . Projectiles . | . . . . . . . . . . . . . . . . . . . . Explosions 54 | . 14 . . . 19 . . 21 . . . . . . . . . . . Melee 9 | . . . . . . . . . . 9 . . . . . . . . . Knockbacks . | . . . . . . . . . . . . . . . . . . . . Impact . | . . . . . . . . . . . . . . . . . . . . Kinetic . | . . . . . . . . . . . . . . . . . . . . Secondary . | . . . . . . . . . . . . . . . . . . . . Self-Inflicted Damage 225 | . 5 . 34 . 120 42 16 8 . . . . . . . . . . . Shots 8 | . 1 . 1 . 2 1 2 1 . . . . . . . . . . . Rammed . | . . . . . . . . . . . . . . . . . . . . Targets Rammed . | . . . . . . . . . . . . . . . . . . . . Kicked . | . . . . . . . . . . . . . . . . . . . . Crushed . | . . . . . . . . . . . . . . . . . . . . Highest Temperature 406 | . 99 231 398 88 180 72 42 160 . 270 . . 6 406 64 116 221 282 278 Average Temperature 72 | . 31 97 73 35 68 21 12 52 . 99 . . 3 173 40 52 90 79 123 Received Heat Transfer 1759 | . 168 80 401 16 6 54 102 86 . 324 18 . 94 . 8 18 . 78 306 Effects 8 | . . . 3 . . . . . . . . . . 4 . . 1 . . Shutdowns 4 | . . . 1 . . . . . . . . . . 3 . . . . . Energy Bleed 1 | . . . . . . . . . . . . . . . . . 1 . . Interference 3 | . . . 2 . . . . . . . . . . 1 . . . . . Siege Activations . | . . . . . . . . . . . . . . . . . . . . Robots Corrupted . | . . . . . . . . . . . . . . . . . . . . Combat Hostiles . | . . . . . . . . . . . . . . . . . . . . Parts Fried 19 | . 3 . 4 . 2 1 5 4 . . . . . . . . . . . Impact Corruptions . | . . . . . . . . . . . . . . . . . . . . Robots Melted . | . . . . . . . . . . . . . . . . . . . . Combat Hostiles . | . . . . . . . . . . . . . . . . . . . . Parts Melted 7 | . . . 1 . 1 . 1 . . 1 . . . . . 2 . 1 . Heat Transferred 4252 | . 150 . 300 . 112 . 150 250 . 814 . . . 407 37 296 444 1238 54 Parts Sabotaged . | . . . . . . . . . . . . . . . . . . . . Parts Stolen 3 | . . . . . . . . . . . . . . 2 . . 1 . . Parts Stripped . | . . . . . . . . . . . . . . . . . . . . Power Chain Reactions 18 | . 2 . 4 1 3 1 4 3 . . . . . . . . . . . Missiles Intercepted . | . . . . . . . . . . . . . . . . . . . . Alert | -11 -10 -10 -9 -9 -9 -8 -8 -7 -7 -7 -7 -7 -7 -6 -6 -6 -6 -6 -6 ------- Run | Scr Mat Min Mat Min Exi Min Mat Fac Was Fac Low Low Dat Pro Fac Low Low Zio Dee Peak Influence 1945 | . 389 293 896 379 . 284 553 406 137 1945 . . . . 338 . . . . Initial 214 | . . 88 41 214 . . 40 81 137 95 . . . . 107 . . . . Average 328 | . 226 177 626 282 . 141 164 148 137 1193 . . . . 256 . . . . Maximum Alert Level 5 | . 1 1 3 1 . 1 2 2 . 5 . . . . 1 . . . . Low Security (%) 56 | 100 40 62 7 19 . 67 77 72 100 4 . . . . 34 . . . . Level 1 20 | . 60 37 8 80 . 32 16 27 . 7 . . . . 65 . . . . Level 2 7 | . . . 33 . . . 6 . . 21 . . . . . . . . . Level 3 8 | . . . 50 . . . . . . 15 . . . . . . . . . Level 4 . | . . . . . . . . . . 7 . . . . . . . . . Level 5 5 | . . . . . . . . . . 43 . . . . . . . . . High Security . | . . . . . . . . . . . . . . . . . . . . Max Security . | . . . . . . . . . . . . . . . . . . . . Squads Dispatched 31 | . 3 . 5 . . . 2 6 . 13 . . . . 2 . . . . Investigation 14 | . 2 . 4 . . . 2 2 . 3 . . . . 1 . . . . Extermination 4 | . . . . . . . . 2 . 2 . . . . . . . . . Reinforcement 8 | . 1 . 1 . . . . 2 . 3 . . . . 1 . . . . Assault 5 | . . . . . . . . . . 5 . . . . . . . . . Garrison . | . . . . . . . . . . . . . . . . . . . . Intercept . | . . . . . . . . . . . . . . . . . . . . Construction Impeded 3 | . . . . . . . . 1 . 2 . . . . . . . . . Haulers Reinforced . | . . . . . . . . . . . . . . . . . . . . Stealth | -11 -10 -10 -9 -9 -9 -8 -8 -7 -7 -7 -7 -7 -7 -6 -6 -6 -6 -6 -6 --------- Run | Scr Mat Min Mat Min Exi Min Mat Fac Was Fac Low Low Dat Pro Fac Low Low Zio Dee Distress Signals 8 | . 1 . 2 . . . . . . 5 . . . . . . . . . Communications Jammed 114 | . . . . . . . 17 . . 96 . . . 1 . . . . . Distress Signals 112 | . . . . . . . 16 . . 95 . . . 1 . . . . . Times Spotted 352 | 3 25 13 64 7 25 11 36 22 3 68 1 . 4 8 6 11 8 34 3 Peak Tracking Total 12 | 1 5 3 6 3 8 4 5 3 1 12 1 . 4 3 5 4 4 5 3 Tactical Retreats 29 | . 1 1 2 . 7 1 1 . . 4 1 . . . 1 4 2 4 . Traps | -11 -10 -10 -9 -9 -9 -8 -8 -7 -7 -7 -7 -7 -7 -6 -6 -6 -6 -6 -6 ------- Run | Scr Mat Min Mat Min Exi Min Mat Fac Was Fac Low Low Dat Pro Fac Low Low Zio Dee Traps Triggered 10 | . . . 1 . . . 1 2 . 5 . . . . 1 . . . . Indirectly . | . . . . . . . . . . . . . . . . . . . . Trap Hack Attempts . | . . . . . . . . . . . . . . . . . . . . Triggered . | . . . . . . . . . . . . . . . . . . . . Disarmed . | . . . . . . . . . . . . . . . . . . . . Reprogrammed . | . . . . . . . . . . . . . . . . . . . . Reused . | . . . . . . . . . . . . . . . . . . . . Traps Extracted . | . . . . . . . . . . . . . . . . . . . . Installed 1 | . . . . . . . . . . . . . . . . 1 . . . Triggered 9 | . . . . . . . 1 . . . . 5 . . . 3 . . . Machines | -11 -10 -10 -9 -9 -9 -8 -8 -7 -7 -7 -7 -7 -7 -6 -6 -6 -6 -6 -6 ---------- Run | Scr Mat Min Mat Min Exi Min Mat Fac Was Fac Low Low Dat Pro Fac Low Low Zio Dee Machines Disabled 59 | . . 1 2 . 13 3 3 11 . 24 . . . . . . 1 1 . Max in Single Turn 6 | . . 1 1 . 2 1 2 2 . 6 . . . . . . 1 1 . Garrison Access 5 | . . . . . . . 1 1 . 3 . . . . . . . . . Machines Sabotaged . | . . . . . . . . . . . . . . . . . . . . Garrisons Compromised . | . . . . . . . . . . . . . . . . . . . . Overloaded Fab Kills . | . . . . . . . . . . . . . . . . . . . . Fab Network Shutdowns . | . . . . . . . . . . . . . . . . . . . . Hacking | -11 -10 -10 -9 -9 -9 -8 -8 -7 -7 -7 -7 -7 -7 -6 -6 -6 -6 -6 -6 --------- Run | Scr Mat Min Mat Min Exi Min Mat Fac Was Fac Low Low Dat Pro Fac Low Low Zio Dee Machines Accessed 85 | . 9 . 16 . 2 . 13 15 . 19 2 . 4 . 4 . 1 . . Terminals 49 | . 7 . 11 . . . 10 10 . 9 . . . . 2 . . . . Fabricators 4 | . . . . . . . . . . 3 . . . . 1 . . . . Repair Stations 2 | . . . 1 . . . . 1 . . . . . . . . . . . Recycling Units 7 | . 2 . 2 . . . . 1 . 2 . . . . . . . . . Scanalyzers 7 | . . . 2 . . . 2 1 . 1 . . . . 1 . . . . Garrison Access 7 | . . . . . . . 1 2 . 4 . . . . . . . . . Total Hacks 486 | . 40 . 81 . 2 . 92 78 . 133 2 . 24 . 33 . 1 . . Successful 365 | . 27 . 61 . 2 . 73 55 . 100 2 . 24 . 20 . 1 . . Failed 117 | . 12 . 19 . . . 18 23 . 32 . . . . 13 . . . . Catastrophic 14 | . 1 . . . . . 3 3 . 5 . . . . 2 . . . . Database Lockouts 4 | . 1 . 1 . . . 1 . . 1 . . . . . . . . . Manual 269 | . 23 . 46 . 1 . 49 55 . 79 . . . . 15 . 1 . . Terminals 354 | . 33 . 67 . . . 69 64 . 98 . . . . 23 . . . . Fabricators 20 | . . . . . . . . . . 15 . . . . 5 . . . . Repair Stations 2 | . . . 1 . . . . 1 . . . . . . . . . . . Recycling Units 20 | . 7 . 5 . . . . 4 . 4 . . . . . . . . . Scanalyzers 48 | . . . 8 . . . 21 4 . 10 . . . . 5 . . . . Garrison Access 13 | . . . . . . . 2 5 . 6 . . . . . . . . . Terminal Hacks 175 | . 12 . 25 . 2 . 30 22 . 50 2 . 24 . 7 . 1 . . Record 12 | . . . . . 1 . . . . . . . 11 . . . . . . Part Schematic 21 | . 1 . 1 . . . . 1 . 12 . . 4 . 2 . . . . Robot Schematic 8 | . . . . . . . . . . 2 . . 6 . . . . . . Robot Analysis 20 | . 3 . 6 . . . 5 1 . 5 . . . . . . . . . Prototype ID Bank 16 | . 2 . 1 . . . 2 2 . 5 . . 3 . 1 . . . . Open Door 3 | . . . . . . . . . . . 2 . . . . . 1 . . Level Access Points 2 | . . . . . . . 1 . . . . . . . 1 . . . . Branch Access Points 5 | . . . 1 . . . 1 1 . 1 . . . . 1 . . . . Machine Index 4 | . . . . . . . 2 . . 1 . . . . 1 . . . . Terminal Index 7 | . 2 . 1 . . . 1 2 . 1 . . . . . . . . . Fabricator Index 2 | . . . . . . . . 1 . 1 . . . . . . . . . Scanalyzer Index 3 | . . . 1 . . . . . . 2 . . . . . . . . . Garrison Index 2 | . . . . . . . . 1 . 1 . . . . . . . . . Alert Level 7 | . . . 1 . . . 4 1 . 1 . . . . . . . . . Unreport Threat 18 | . . . 3 . . . 4 3 . 8 . . . . . . . . . Locate Traps 13 | . 3 . 3 . . . 2 3 . 2 . . . . . . . . . Patrol Status 2 | . . . . . . . 2 . . . . . . . . . . . . Recall Reinforcements 1 | . . . . . . . . 1 . . . . . . . . . . . Hauler Manifests 5 | . . . 1 . . . 2 1 . 1 . . . . . . . . . Registered Components 4 | . . . 1 . . . 1 . . 1 . . . . 1 . . . . Registered Prototypes 2 | . . . . . . . 1 1 . . . . . . . . . . . Zone Layout 17 | . 1 . 5 . . . 2 3 . 6 . . . . . . . . . EX-Prototype ID Bank 1 | . . . . . 1 . . . . . . . . . . . . . . Fabricator Hacks 13 | . . . . . . . . . . 9 . . . . 4 . . . . Load Schematic 5 | . . . . . . . . . . 3 . . . . 2 . . . . Build 8 | . . . . . . . . . . 6 . . . . 2 . . . . Repair Station Hacks . | . . . . . . . . . . . . . . . . . . . . Recycling Unit Hacks 8 | . 3 . 2 . . . . 1 . 2 . . . . . . . . . Report Inventory 7 | . 2 . 2 . . . . 1 . 2 . . . . . . . . . Retrieve Components 1 | . 1 . . . . . . . . . . . . . . . . . . Scanalyzer 44 | . . . 7 . . . 20 4 . 9 . . . . 4 . . . . Insert Component 20 | . . . 3 . . . 9 2 . 4 . . . . 2 . . . . Analyze 24 | . . . 4 . . . 11 2 . 5 . . . . 2 . . . . Garrison Access Hacks 5 | . . . . . . . 1 1 . 3 . . . . . . . . . Seal Access 5 | . . . . . . . 1 1 . 3 . . . . . . . . . Unauthorized Hacks 120 | . 12 . 27 . . . 22 27 . 27 . . . . 5 . . . . Terminals 91 | . 8 . 22 . . . 20 21 . 17 . . . . 3 . . . . Track 37 | . 3 . 9 . . . 8 9 . 7 . . . . 1 . . . . Assimilate 6 | . 1 . 2 . . . 1 1 . 1 . . . . . . . . . Botnet 42 | . 4 . 10 . . . 10 10 . 7 . . . . 1 . . . . Operators 6 | . . . 1 . . . 1 1 . 2 . . . . 1 . . . . Fabricators 5 | . . . . . . . . . . 4 . . . . 1 . . . . Report 4 | . . . . . . . . . . 3 . . . . 1 . . . . Siphon 1 | . . . . . . . . . . 1 . . . . . . . . . Repair Stations 2 | . . . 1 . . . . 1 . . . . . . . . . . . Mechanics 2 | . . . 1 . . . . 1 . . . . . . . . . . . Recycling Units 10 | . 4 . 3 . . . . 1 . 2 . . . . . . . . . Reject 2 | . 1 . 1 . . . . . . . . . . . . . . . . Mask 1 | . 1 . . . . . . . . . . . . . . . . . . Tunnel 7 | . 2 . 2 . . . . 1 . 2 . . . . . . . . . Scanalyzers 4 | . . . 1 . . . 1 . . 1 . . . . 1 . . . . Extract 4 | . . . 1 . . . 1 . . 1 . . . . 1 . . . . Garrison Access 8 | . . . . . . . 1 4 . 3 . . . . . . . . . Broadcast 2 | . . . . . . . . 1 . 1 . . . . . . . . . Decoy 1 | . . . . . . . . 1 . . . . . . . . . . . Reprogram 2 | . . . . . . . . 1 . 1 . . . . . . . . . Watchers 3 | . . . . . . . 1 1 . 1 . . . . . . . . . Data Cores Recovered 2 | . 1 . . . . . . . . . . . . . 1 . . . . Used 1 | . . . . . . . . . . . . . . . 1 . . . . Hacking Detections 53 | . 8 . 12 . . . 8 12 . 11 . . . . 2 . . . . Full Trace Events 4 | . 1 . 2 . . . . 1 . . . . . . . . . . . Feedback Events . | . . . . . . . . . . . . . . . . . . . . Feedback Blocked . | . . . . . . . . . . . . . . . . . . . . Robot Schematics Acquired 8 | . . . . . . . . . . 2 . . 6 . . . . . . Robots Built . | . . . . . . . . . . . . . . . . . . . . Matter . | . . . . . . . . . . . . . . . . . . . . Time . | . . . . . . . . . . . . . . . . . . . . Total Robot Build Rating . | . . . . . . . . . . . . . . . . . . . . Part Schematics Acquired 53 | . 1 . 5 . . . 17 3 . 17 . . 4 . 6 . . . . Parts Built 7 | . . . . . . . . . . 4 . . . . 3 . . . . Matter 972 | . . . . . . . . . . 570 . . . . 402 . . . . Time 390 | . . . . . . . . . . 189 . . . . 201 . . . . Total Part Build Rating 37 | . . . . . . . . . . 20 . . . . 17 . . . . Parts Repaired . | . . . . . . . . . . . . . . . . . . . . Time . | . . . . . . . . . . . . . . . . . . . . Parts Recycled . | . . . . . . . . . . . . . . . . . . . . Recycled Matter . | . . . . . . . . . . . . . . . . . . . . Retrieved Matter . | . . . . . . . . . . . . . . . . . . . . Retrieved Components 9 | . 9 . . . . . . . . . . . . . . . . . . Parts Scanalyzed 20 | . . . 3 . . . 9 2 . 4 . . . . 2 . . . . Part Schematics Acquired 20 | . . . 3 . . . 9 2 . 4 . . . . 2 . . . . Parts Damaged . | . . . . . . . . . . . . . . . . . . . . Bothacking | -11 -10 -10 -9 -9 -9 -8 -8 -7 -7 -7 -7 -7 -7 -6 -6 -6 -6 -6 -6 ------------ Run | Scr Mat Min Mat Min Exi Min Mat Fac Was Fac Low Low Dat Pro Fac Low Low Zio Dee Used RIF Installer . | . . . . . . . . . . . . . . . . . . . . Robots Hacked 11 | . . . . . . . . 9 . . . . 2 . . . . . . Non-combat 9 | . . . . . . . . 8 . . . . 1 . . . . . . Combat 2 | . . . . . . . . 1 . . . . 1 . . . . . . Robot Hacks Applied 12 | . . . . . . . . 10 . . . . 2 . . . . . . parse_system 4 | . . . . . . . . 2 . . . . 2 . . . . . . no_distress 3 | . . . . . . . . 3 . . . . . . . . . . . find_chute 2 | . . . . . . . . 2 . . . . . . . . . . . find_fabricator 1 | . . . . . . . . 1 . . . . . . . . . . . find_recycling 2 | . . . . . . . . 2 . . . . . . . . . . . Relay Couplers Released . | . . . . . . . . . . . . . . . . . . . . Robots Rewired . | . . . . . . . . . . . . . . . . . . . . Allies Hacked . | . . . . . . . . . . . . . . . . . . . . Hacks Repelled . | . . . . . . . . . . . . . . . . . . . . Allies | -11 -10 -10 -9 -9 -9 -8 -8 -7 -7 -7 -7 -7 -7 -6 -6 -6 -6 -6 -6 -------- Run | Scr Mat Min Mat Min Exi Min Mat Fac Was Fac Low Low Dat Pro Fac Low Low Zio Dee Total Allies 28 | . . . 1 3 . . 1 1 20 2 . . . . . . . . . Largest Group 20 | . . . 1 3 3 . 1 1 20 20 1 1 1 1 . . . . . Highest-Rated Group 508 | . . . 10 40 40 . 10 38 508 508 10 10 10 10 . . . . . Highest-Rated Ally 38 | . . . 10 16 16 . 10 38 35 38 10 10 10 10 . . . . . Total Orders 5 | . . . . . 3 . . . . . . . 2 . . . . . . STAY 4 | . . . . . 3 . . . . . . . 1 . . . . . . FOLLOW 1 | . . . . . . . . . . . . . 1 . . . . . . Ally Attacks 190 | . . . . . 41 . . 1 . 148 . . . . . . . . . Total Damage 4712 | . . . . . 190 . . 18 . 4504 . . . . . . . . . Kills 52 | . . . . . . . . . . 52 . . . . . . . . . Allies Corrupted . | . . . . . . . . . . . . . . . . . . . . Allies Melted . | . . . . . . . . . . . . . . . . . . . . Intel | -11 -10 -10 -9 -9 -9 -8 -8 -7 -7 -7 -7 -7 -7 -6 -6 -6 -6 -6 -6 ------- Run | Scr Mat Min Mat Min Exi Min Mat Fac Was Fac Low Low Dat Pro Fac Low Low Zio Dee Robot Analysis Total 135 | . 3 . 6 . . . 5 1 . 5 . . 115 . . . . . . Derelict Logs Recovered 10 | . . 1 . 1 . . . . . . 2 1 . 2 . 2 1 . . Drone Launches . | . . . . . . . . . . . . . . . . . . . . Drone Recoveries . | . . . . . . . . . . . . . . . . . . . . Exploration | -11 -10 -10 -9 -9 -9 -8 -8 -7 -7 -7 -7 -7 -7 -6 -6 -6 -6 -6 -6 ------------- Run | Scr Mat Min Mat Min Exi Min Mat Fac Was Fac Low Low Dat Pro Fac Low Low Zio Dee Turns Passed 17430 | 2890 890 601 1738 499 1843 525 1448 1892 310 1618 191 109 211 274 407 229 301 1221 233 Spaces Moved 15771 | 565 871 680 1424 503 1102 511 1283 2464 403 1995 312 204 211 354 306 401 512 1488 182 Core 2 | 2 . . . . . . . . . . . . . . . . . . . Treads 820 | 563 29 . . . 228 . . . . . . . . . . . . . . Legs . | . . . . . . . . . . . . . . . . . . . . Wheels . | . . . . . . . . . . . . . . . . . . . . Hover 14949 | . 842 680 1424 503 874 511 1283 2464 403 1995 312 204 211 354 306 401 512 1488 182 Flight . | . . . . . . . . . . . . . . . . . . . . Fastest Speed 45 | 50 66 66 76 76 76 76 72 52 52 52 52 52 52 52 45 45 45 45 45 Average Speed 68 | 159 70 68 76 76 121 76 72 54 52 52 52 52 52 52 51 45 45 60 50 Slowest Speed 220 | 160 160 76 80 76 220 76 76 126 52 52 52 52 52 52 52 45 131 121 121 Overloaded Moves . | . . . . . . . . . . . . . . . . . . . . Propulsion Burnouts . | . . . . . . . . . . . . . . . . . . . . Robots Hopped 1 | . . . . . . . . . . . 1 . . . . . . . . Cave-ins Triggered . | . . . . . . . . . . . . . . . . . . . . Exploration Rate (%) 73 | 68 96 97 95 95 90 96 88 63 96 59 55 49 79 79 17 70 68 83 21 Regions Visited 19 Branch Regions 12 Pre-discovered Areas 38 | . 2 . 2 . 1 . . 1 . 2 1 1 23 . . . . 5 . Known Exits Taken 11 | . . . 1 . . . 1 . . 1 1 1 1 1 1 1 1 1 . Unknown Exits Taken 6 | 1 1 1 . 1 1 1 . . . . . . . . . . . . . Scrap Searched 17 | . . 2 . 1 . 1 . . . . 2 2 . 1 . 5 1 2 . Spaces Dug 7 | . . . . . . . . . . 4 2 . . . 1 . . . . Terrain Destroyed 319 | . 6 . 14 3 42 26 87 97 . 19 3 . . 5 1 1 7 1 7 Melee 7 | . . . . . . . . . . 4 2 . . . 1 . . . . Projectile 86 | . . . . . . 18 23 8 . 15 1 . . 5 . 1 7 1 7 AOE 226 | . 6 . 14 3 42 8 64 89 . . . . . . . . . . . Terrain Rammed . | . . . . . . . . . . . . . . . . . . . . Walls Destroyed . | . . . . . . . . . . . . . . . . . . . . Machines Disabled . | . . . . . . . . . . . . . . . . . . . . Actions | -11 -10 -10 -9 -9 -9 -8 -8 -7 -7 -7 -7 -7 -7 -6 -6 -6 -6 -6 -6 --------- Run | Scr Mat Min Mat Min Exi Min Mat Fac Was Fac Low Low Dat Pro Fac Low Low Zio Dee Total 21268 | 2541 1042 765 1853 594 1465 611 1734 2914 488 2470 326 206 293 402 537 444 559 1727 297 Wait 3742 | 1960 72 43 179 63 131 51 248 266 64 271 3 3 30 5 199 10 1 73 70 Move 15751 | 564 870 679 1423 502 1101 510 1282 2464 402 1994 309 203 210 353 305 400 511 1487 182 Hop 1 | . . . . . . . . . . . 1 . . . . . . . . Pick Up 92 | 3 4 1 10 2 18 1 13 5 1 11 . . 2 . 3 2 6 10 . Fast Attach 89 | 7 5 1 14 1 15 1 8 14 4 6 . . . 2 3 . 2 6 . Attach 36 | . 1 1 3 . 3 1 8 1 . 4 . . . . 2 . 2 8 2 Detach 17 | . . . 3 . 1 . 7 1 . 3 . . . . . . . 1 1 Swap 36 | . 2 . 5 . 5 . . 3 . 6 . . 4 1 4 . . 4 2 Drop 162 | 1 8 1 23 2 34 1 19 17 5 15 . . 2 . 6 2 6 16 4 Fire 911 | 6 53 25 130 15 136 33 91 83 12 74 8 . 12 33 10 15 23 116 36 Melee 35 | . . . . . . . 1 12 . 14 2 . 3 . 2 . 1 . . Ram . | . . . . . . . . . . . . . . . . . . . . Kick . | . . . . . . . . . . . . . . . . . . . . Crush . | . . . . . . . . . . . . . . . . . . . . Escape Stasis 13 | . . . . . . . . . . 13 . . . . . . . . . Rewire . | . . . . . . . . . . . . . . . . . . . . Trap 1 | . . . . . . . . . . . . . . . . 1 . . . Miscellaneous 382 | . 27 14 63 9 21 13 57 48 . 59 3 . 30 8 3 14 7 6 . Route ------- -11/Scrapyard -10/Materials (discovered 5 exits: *Mat x3 / [*Min x2]) -10/Mines (discovered 2 exits: *Mat x2) -9/Materials (discovered 5 exits: *Mat x3 / *Min x2) -9/Mines (discovered 3 exits: *Mat x2 / *Exi) -9/Exiles (discovered 2 exits: [*Min x2]) -8/Mines (discovered 2 exits: *Mat x2) -8/Materials (discovered 3 exits: *Fac x3) -7/Factory (discovered 8 exits: *Fac x4 / Sto x2 / *Low x2) -7/Waste -7/Factory (discovered 6 exits: *Fac x3 / *Sto / *Low x2) -7/Lower Caves -7/Lower Caves -7/Data Miner -6/Proximity Caves -6/Factory (discovered 6 exits: Fac x4 / *Low x2) -6/Lower Caves -6/Lower Caves (discovered 2 exits: Fac / *Zio) -6/Zion (discovered 2 exits: *Dee / *Pro) -6/Deep Caves History --------- Turn | Location | Event 1 | -11/Scrapyard | Upgraded with Propulsion slot (x1) 1 | -11/Scrapyard | Upgraded with Utility slot (x1) 1 | -11/Scrapyard | Upgraded with Weapon slot (x1) 13 | -11/Scrapyard | Discovered new exit (range 17) 1595 | -11/Scrapyard | Assembled infested the area 2891 | -11/Scrapyard | Entered Materials 2892 | -10/Materials | Build established: Mutant 3041 | -10/Materials | Discovered new exit (range 14) 3139 | -10/Materials | Discovered new exit (range 17) 3258 | -10/Materials | Reached level 2 3283 | -10/Materials | Upgraded with Utility slot (x1) 3283 | -10/Materials | Upgraded with Weapon slot (x1) 3412 | -10/Materials | Discovered new exit (range 8) 3478 | -10/Materials | Discovered new exit (range 13) 3579 | -10/Materials | Build established: Scavenger-Skirmisher 3656 | -10/Materials | Discovered new exit (range 16) 3660 | -10/Materials | Central database locked down 3781 | -10/Materials | Entered Mines 3818 | -10/Mines | Discovered new exit (range 16) 3844 | -10/Mines | Reached level 3 3860 | -10/Mines | Upgraded with Utility slot (x1) 3901 | -10/Mines | Learned Materials stockpile data 3996 | -10/Mines | Discovered new exit (range 11) 4102 | -10/Mines | Assembled infested the area 4107 | -10/Mines | Assisted by a Guerilla fighting off Assembled 4179 | -10/Mines | Build established: Scavenger-Tank 4382 | -10/Mines | Entered Materials 4384 | -9/Materials | Reached level 4 4386 | -9/Materials | Upgraded with Utility slot (x1) 4488 | -9/Materials | Reached level 5 4488 | -9/Materials | Upgraded with Utility slot (x1) 4701 | -9/Materials | Reached level 6 4707 | -9/Materials | Core integrity fell below 50% 4712 | -9/Materials | Upgraded with Power slot (x1) 4954 | -9/Materials | Reached level 7 4976 | -9/Materials | Upgraded with Utility slot (x1) 5112 | -9/Materials | Discovered new exit (range 17) 5160 | -9/Materials | Identified exit to Mines 5271 | -9/Materials | Build established: Hacker-Tank 5347 | -9/Materials | Reached level 8 5374 | -9/Materials | Discovered new exit (range 3) 5855 | -9/Materials | Discovered new exit (range 19) 5855 | -9/Materials | Central database locked down 6120 | -9/Materials | Entered Mines 6126 | -9/Mines | Found a damaged Exp. Sensor Array with a note attached 6128 | -9/Mines | Found Prototype Device 6128 | -9/Mines | Identified Exp. Sensor Array 6135 | -9/Mines | Reached level 9 6220 | -9/Mines | Discovered new exit (range 10) 6325 | -9/Mines | Discovered new exit (range 14) 6343 | -9/Mines | Received a Rocket Launcher from a helpful Derelict 6362 | -9/Mines | Found a hidden stash of uninstalled traps 6442 | -9/Mines | Build established: Hacker-Scout 6473 | -9/Mines | Learned 2 Materials zone layouts 6516 | -9/Mines | Assisted by bots powering up and referring to "LRC-V3" 6575 | -9/Mines | Deemed a non-threat by the Exiles lab entrance 6575 | -9/Mines | Discovered new exit (range 5) 6619 | -9/Mines | Entered Exiles 6619 | -9/Exiles | Accompanied by 3 allies 6629 | -9/Exiles | Discovered new exit (range 15) 6643 | -9/Exiles | Met 8R-AWN 6679 | -9/Exiles | Met EX-HEX 6708 | -9/Exiles | Met EX-DEC 6724 | -9/Exiles | Learned location of Zion (-6) 6742 | -9/Exiles | Met EX-BIN 6833 | -9/Exiles | Aligned with FarCom system 6834 | -9/Exiles | Given EX-Vault access code 6855 | -9/Exiles | Opened EX-Vault 6860 | -9/Exiles | Found Cloak of Protection 6897 | -9/Exiles | Warned to stay clear of 0b10 Research branches 7246 | -9/Exiles | Attacked by the Exiles 7510 | -9/Exiles | Destroyed 8R-AWN 7551 | -9/Exiles | Found Prototype Protection 7558 | -9/Exiles | Found Prototype Device 7558 | -9/Exiles | Identified AS-neutralizer No. 17b 7577 | -9/Exiles | Found Prototype Ballistic Gun 7577 | -9/Exiles | Identified 8R-AWN's Boregun 7581 | -9/Exiles | Found 8R-AWN's Boregun 7815 | -9/Exiles | Build established: Scavenger-Mutant 8027 | -9/Exiles | Destroyed EX-BIN 8092 | -9/Exiles | Destroyed EX-DEC 8129 | -9/Exiles | Destroyed EX-HEX 8323 | -9/Exiles | Identified 8R-AWN's Armor/EX 8453 | -9/Exiles | Discovered new exit (range 12) 8462 | -9/Exiles | Left Exiles lab with Cloak of Protection 8462 | -9/Exiles | Entered Mines 8468 | -8/Mines | Discovered new exit (range 6) 8551 | -8/Mines | Reached level 10 8568 | -8/Mines | Upgraded with Utility slot (x1) 8685 | -8/Mines | Discovered new exit (range 12) 8828 | -8/Mines | Build established: Scavenger-Gunner 8987 | -8/Mines | Entered Materials 8988 | -8/Materials | Identified exit to Factory 8989 | -8/Materials | Reached level 11 8991 | -8/Materials | Upgraded with Propulsion slot (x1) 9211 | -8/Materials | Reached level 12 9779 | -8/Materials | Build established: Scavenger-Mutant 9864 | -8/Materials | Destroyed 7 combat bots 9900 | -8/Materials | Central database locked down 10065 | -8/Materials | Reached level 13 10075 | -8/Materials | Upgraded with Utility slot (x1) 10435 | -8/Materials | Entered Factory 10437 | -7/Factory | Reached level 14 10828 | -7/Factory | Build established: Hacker-Mutant 10991 | -7/Factory | Discovered new exit (range 11) 11048 | -7/Factory | Identified exit to Storage 11048 | -7/Factory | Identified exit to Lower Caves 11133 | -7/Factory | Discovered new exit (range 7) 11627 | -7/Factory | Build established: Hacker-Gunner 11718 | -7/Factory | Reached level 15 11890 | -7/Factory | Discovered new exit (range 16) 12077 | -7/Factory | Discovered new exit (range 16) 12327 | -7/Factory | Sucked down chute 12327 | -7/Factory | Entered Waste 12328 | -7/Waste | Met a frightened Derelict 12331 | -7/Waste | Spotted C-40 Crusher 12332 | -7/Waste | Spotted C-40 Crusher 12337 | -7/Waste | Destroyed C-40 Crusher 12346 | -7/Waste | Destroyed C-40 Crusher 12353 | -7/Waste | Destroyed C-40 Crusher 12367 | -7/Waste | Spotted C-40 Crusher 12368 | -7/Waste | Spotted C-40 Crusher 12368 | -7/Waste | Destroyed C-40 Crusher 12373 | -7/Waste | Destroyed C-40 Crusher 12377 | -7/Waste | Spotted C-40 Crusher 12377 | -7/Waste | Destroyed C-40 Crusher 12403 | -7/Waste | Warlord forces began an assault 12466 | -7/Waste | Discovered new exit (range 12) 12637 | -7/Waste | Entered Factory 12637 | -7/Factory | Accompanied by 20 allies 12711 | -7/Factory | Reached level 16 12713 | -7/Factory | Upgraded with Utility slot (x1) 12918 | -7/Factory | Discovered new exit (range 16) 13037 | -7/Factory | First assault squad dispatched 13037 | -7/Factory | Reached level 17 13173 | -7/Factory | Destroyed 8 combat bots 13327 | -7/Factory | Fabricated Force Rifle (x2) 13652 | -7/Factory | Build established: Wizard-Mutant 13783 | -7/Factory | Discovered new exit (range 16) 13831 | -7/Factory | Central database locked down 13886 | -7/Factory | Fabricated Imp. System Shield? 14003 | -7/Factory | Fabricated Imp. Hacking Suite (x1) 14044 | -7/Factory | Reached level 18 14163 | -7/Factory | Identified exit to Factory 14216 | -7/Factory | Discovered exit to Factory (range 3) 14255 | -7/Factory | Entered Lower Caves 14255 | -7/Lower Caves | Accompanied by 1 ally 14394 | -7/Lower Caves | Discovered new exit (range 20) 14394 | -7/Lower Caves | Learned 8 Factory zone layouts 14422 | -7/Lower Caves | Identified exit to Lower Caves 14446 | -7/Lower Caves | Entered another Lower Caves area 14446 | -7/Lower Caves | Accompanied by 1 ally 14516 | -7/Lower Caves | Build established: Hacker-Ninja 14550 | -7/Lower Caves | Discovered new exit (range 3) 14553 | -7/Lower Caves | Identified exit to Data Miner 14555 | -7/Lower Caves | Entered Data Miner 14555 | -7/Data Miner | Accompanied by 1 ally 14555 | -7/Data Miner | Discovered new exit (range 6) 14559 | -7/Data Miner | Identified exit to Proximity Caves 14566 | -7/Data Miner | Met Data Miner 14579 | -7/Data Miner | Learned location of Section 7 (-2) 14579 | -7/Data Miner | Acquired the access code to Warlord's prototype stash 14588 | -7/Data Miner | Received God Mode back door access code from Data Miner 14660 | -7/Data Miner | Destroyed Data Miner 14663 | -7/Data Miner | Found Quantum Router 14665 | -7/Data Miner | Found System Mapper 14667 | -7/Data Miner | Interfaced with the Data Conduit 14669 | -7/Data Miner | Found Ghost Barrier 14685 | -7/Data Miner | Core integrity fell below 50% 14696 | -7/Data Miner | Core integrity fell below 20% 14766 | -7/Data Miner | Entered Proximity Caves 14766 | -6/Proximity Caves | Accompanied by 1 ally 14815 | -6/Proximity Caves | Spotted PJ-OFP(f) 14815 | -6/Proximity Caves | Spotted TI-TI3(f) 14816 | -6/Proximity Caves | Encountered a Master Thief 14816 | -6/Proximity Caves | Encountered a Master Thief 14821 | -6/Proximity Caves | Cloak of Protection stolen by Master Thief 14844 | -6/Proximity Caves | Destroyed TI-TI3(f) 14905 | -6/Proximity Caves | Learned 8 Factory zone layouts 14933 | -6/Proximity Caves | Reached level 19 15040 | -6/Proximity Caves | Entered Factory 15041 | -6/Factory | Identified exit to Factory 15042 | -6/Factory | Loaded intel: 232 machine locations 15059 | -6/Factory | Identified exit to Lower Caves 15334 | -6/Factory | Fabricated Linear Gravjet (x2) 15438 | -6/Factory | Fabricated Cloaking Device (x1) 15447 | -6/Factory | Entered Lower Caves 15543 | -6/Lower Caves | Learned 12 Factory zone layouts 15613 | -6/Lower Caves | Spotted B-75 Beast 15648 | -6/Lower Caves | Encountered a Warlord checkpoint 15665 | -6/Lower Caves | Discovered new exit (range 23) 15676 | -6/Lower Caves | Identified exit to Lower Caves 15676 | -6/Lower Caves | Entered another Lower Caves area 15685 | -6/Lower Caves | Discovered exit to Factory (range 22) 15704 | -6/Lower Caves | Learned Factory emergency access door positions 15742 | -6/Lower Caves | Build established: Wizard-Scout 15768 | -6/Lower Caves | Spotted 80-2YF(f) 15770 | -6/Lower Caves | Encountered a Master Thief 15778 | -6/Lower Caves | 8R-AWN's Boregun stolen by Master Thief 15903 | -6/Lower Caves | Discovered new exit (range 9) 15913 | -6/Lower Caves | Reached level 20 15920 | -6/Lower Caves | Upgraded with Utility slot (x1) 15951 | -6/Lower Caves | Identified exit to Zion 15960 | -6/Lower Caves | Acquired the password to a Derelict Tinkerer's latest research 15966 | -6/Lower Caves | Found Prototype Special Weapon 15977 | -6/Lower Caves | Entered Zion 16006 | -6/Zion | Discovered new exit (range 8) 16009 | -6/Zion | Identified exit to Proximity Caves 16208 | -6/Zion | Build established: Wizard-Ninja 16211 | -6/Zion | Discovered new exit (range 22) 16392 | -6/Zion | Visited the Megawrench Repair Shop 16392 | -6/Zion | Megawrench repaired 8 parts 16563 | -6/Zion | Identified Molecular Deconstructor 16587 | -6/Zion | Saw the warning signs outside the Deep Caves entrance 16589 | -6/Zion | Identified exit to Deep Caves 16623 | -6/Zion | Attacked by Zionites 16939 | -6/Zion | 1C-UTU came to Zion's defense 17109 | -6/Zion | Destroyed 1C-UTU 17198 | -6/Zion | Entered Deep Caves 17236 | -6/Deep Caves | Build established: Wizard-Scout 17366 | -6/Deep Caves | Attacked by Z-Imprinter 17382 | -6/Deep Caves | Core integrity fell below 50% 17403 | -6/Deep Caves | Core integrity fell below 20% 17431 | -6/Deep Caves | Destroyed by Z-Imprinter with Zionite Laser-M Last Messages --------------- 17412_ Destroyed Prototype Hover Unit. 17412_ HV Slug penetrates Wall. 17419_ HV Slug penetrates Z-Imprinter. 17419_ Z-Imprinter suffers critical hit. 17419_ Destroyed Adv. Phase Shifter. 17419_ HV Slug penetrates Wall. 17423_ HV Slug penetrates Z-Imprinter. 17423_ Z-Imprinter suffers critical hit. 17423_ Destroyed Prototype Hover Unit. 17423_ HV Slug penetrates Wall. 17424_ HV Slug penetrates Z-Imprinter. 17424_ HV Slug penetrates Wall. 17426_ HV Slug penetrates Z-Imprinter. 17426_ HV Slug penetrates Wall. 17427_ Protomatter-46 decays. 17427_ HV Slug penetrates Wall. 17430_ HV Slug penetrates Z-Imprinter. 17430_ Z-Imprinter suffers critical hit. 17430_ Destroyed Exp. Heat Sink. 17430_ HV Slug penetrates Wall. Map ----- +----------------------------------------------------+ | | | | | | | | | | | | | | | | | | | | | | | | | | | | | | | ?????????????????##?#########??#############?##### | | ????###?????????######?########################### | | ?? ????????################################### | | ? ?????####### ##########?######## # | | ? ##?### ###?# ###;############## | | ## # ####;;; ######?###### | | ;;;;; #?####?##### | | ########### ### | | ###?###### #### | | ######## !###### | | @ ;#?###### !!##?### | | ?""" ;######## ####### | | ?""" I!;##### ###### | | ?""" !%!* ##### | | ?""" [!=!! ##### | | " =[ != ####### | | """" ###### ######### | | ?""" ######### ######### | | ?""" ########## ####### | | ??"" ########## ### | | ??" ######### #### | | ? ####### #### | | ###### ## | | ####### ### ### | | ? ######## #### ## | | ?" ######## ##### | | ??"" ####### ###### # | | ???? ####### ####### # | | ?????? ######## ####### # | | ????????? ######### ######## # | | ??????????? ######### ######### | | ????????????? ??? #?###### | | ????????????????? ? ####### | | ????????????? ???? ? ###### ########## | | ?????????????? ? ?? ####### ########### | +----------------------------------------------------+ Best States ------------- Heat Dissipation 81 Coolant Potential 50 Energy Generation 52 Energy Capacity 1135 Matter Stores 300 Matter Capacity 300 Sight Range 23 Robot Scan Range 16 Terrain Scan Range 24 Terrain Scan Density 310 Jamming Range 16 Cloak Strength 5 Armor Coverage 1100 Resistance: TH 10 Resistance: EX 90 Weapon Cycling 25 Melee Speed Boost 30 Evasion (%) 56 Core Analysis 10 Armor Integrity Analysis 50 Recoil Reduction 2 Salvage Targeting 4 Offensive Hacking 33 Defensive Hacking 40 Item Schematics ----------------- Med. Armor Plating | -10/Materials | Hacked Cmb. Airjet | -9/Materials | Scanalyzed Hvy. Ion Engine | -9/Materials | Scanalyzed Disposable Heat Sink | -9/Materials | Extracted Cld. Ion Engine | -9/Materials | Scanalyzed Armor Integrity Analyzer | -9/Materials | Hacked Hacking Suite | -8/Materials | Scanalyzed Cmb. Antigrav System | -8/Materials | Scanalyzed Adv. Weapon Cycler | -8/Materials | Scanalyzed Adv. Transmission Jammer | -8/Materials | Scanalyzed Lrn. Terrain Scanner | -8/Materials | Scanalyzed Imp. Datajack | -8/Materials | Scanalyzed Lgt. Angular Momentum Engine | -8/Materials | Scanalyzed Imp. EM Shotgun | -8/Materials | Scanalyzed Shield Generator | -8/Materials | Scanalyzed Flight Unit | -8/Materials | Extracted Nuclear Core | -8/Materials | Extracted System Shield | -8/Materials | Extracted Cooling System | -8/Materials | Extracted Recoil Stabilizer | -8/Materials | Extracted Imp. Targeting Computer | -8/Materials | Extracted Electrolaser | -8/Materials | Extracted Lgt. EM Pulse Cannon | -8/Materials | Extracted Imp. Coolant Injector | -7/Factory | Hacked System Backup Module | -7/Factory | Scanalyzed Imp. Airjet | -7/Factory | Scanalyzed Lrn. Proton Cannon | -7/Factory | Hacked Nuclear Pulse Thruster | -7/Factory | Hacked Lance | -7/Factory | Scanalyzed Variable Charge Gun | -7/Factory | Scanalyzed Cld. Deuterium Engine | -7/Factory | Scanalyzed Antimatter Reactor | -7/Factory | Scanalyzed Force Rifle | -7/Factory | Hacked Airjet | -7/Factory | Extracted Hrd. Heavy Armor Plating | -7/Factory | Hacked Coil Gun | -7/Factory | Hacked Imp. Hacking Suite | -7/Factory | Hacked Imp. System Shield | -7/Factory | Hacked Imp. Salvage Targeting Computer | -7/Factory | Hacked Force Field | -7/Factory | Hacked Imp. Plasma Cutter | -7/Factory | Hacked Greatsword | -7/Factory | Hacked Adv. Trap Extractor | -7/Factory | Hacked Combat Drone Bay | -7/Data Miner | Free Lgt. Regenerative Plating | -7/Data Miner | Free Triangulator | -7/Data Miner | Free Tactical Coordination Suite | -7/Data Miner | Free Cloaking Device | -6/Factory | Hacked Linear Gravjet | -6/Factory | Hacked Imp. Energy Well | -6/Factory | Scanalyzed Adv. ECM Suite | -6/Factory | Scanalyzed Maul | -6/Factory | Extracted Hardlight Generator | -6/Factory | Extracted Robot Schematics ------------------ G-47 Trooper | -7/Factory | Hacked Y-45 Defender | -7/Factory | Hacked S-27 Virus | -7/Data Miner | Free G-50 Soldier | -7/Data Miner | Free L-41 Fighter | -7/Data Miner | Free X-72 Disruptor | -7/Data Miner | Free H-66 Slayer | -7/Data Miner | Free I-36 Angel | -7/Data Miner | Free Fabricated ------------ Force Rifle | x2 | -7/Factory Imp. System Shield | x1 | -7/Factory Imp. Hacking Suite | x1 | -7/Factory Linear Gravjet | x2 | -6/Factory Cloaking Device | x1 | -6/Factory Alien Tech Used ----------------- None Achievements -------------- None Challenges ------------ None RPGLIKE | -11 -10 -10 -9 -9 -9 -8 -8 -7 -7 -7 -7 -7 -7 -6 -6 -6 -6 -6 -6 --------- Run | Scr Mat Min Mat Min Exi Min Mat Fac Was Fac Low Low Dat Pro Fac Low Low Zio Dee Levels Raised 19 | . 1 1 5 1 . 1 3 2 . 3 . . . 1 . . 1 . . XP Earned 31887 | 3000 2355 1525 7704 754 169 1925 3685 3663 97 3998 154 82 372 776 759 286 226 118 239 XP Spent 31495 | 2500 2000 1220 7030 1000 240 2425 4100 1935 . 5650 130 . . . . . 3200 . 65 Upgrades 50 | 8 4 3 8 1 2 3 4 11 . 3 1 . . . . . 1 . 1 Power Slot 1 | . . . 1 . . . . . . . . . . . . . . . . Propulsion Slot 2 | 1 . . . . . . 1 . . . . . . . . . . . . Utility Slot 10 | 1 1 1 3 . . 1 1 . . 1 . . . . . . 1 . . Weapon Slot 2 | 1 1 . . . . . . . . . . . . . . . . . . Core Integrity 5 | . . . . . . . . 4 . . . . . . . . . . 1 Heat Dissipation 5 | . . 2 1 . 2 . . . . . . . . . . . . . . Energy Generation 1 | . . . . . . . 1 . . . . . . . . . . . . Mass Support 1 | 1 . . . . . . . . . . . . . . . . . . . Inventory Capacity 6 | 2 . . 1 1 . . . . . 2 . . . . . . . . . Sight Range 1 | 1 . . . . . . . . . . . . . . . . . . . Sensor Range 8 | . . . . . . 2 . 6 . . . . . . . . . . . Terrain Scan Density 3 | 1 . . 1 . . . . . . . 1 . . . . . . . . Hack Attack % 2 | . 1 . . . . . 1 . . . . . . . . . . . . Hack Defense % 3 | . 1 . 1 . . . . 1 . . . . . . . . . . . Protomatter Created 3317 | 14 253 90 718 89 49 88 537 428 . 419 85 . 175 61 77 83 64 41 46 Integrity Restored 7107 | . 512 235 1219 130 409 262 991 937 . 974 43 . 695 146 54 247 130 123 . Core 4813 | . 319 166 808 70 338 234 392 578 . 689 34 . 644 135 54 139 90 123 . Parts 2294 | . 193 69 411 60 71 28 599 359 . 285 9 . 51 11 . 108 40 . . Protomatter Decayed 1318 | 22 60 17 243 33 . . 143 153 . 442 70 . . 12 59 . 18 . 46 Game ------ Seed AntimatterDefenseBattery Manual? 0 Play Time 03:47:19 Cumulative 257.4 hours Start 2020.09.17 @ 17:39:25 End 2020.09.18 @ 13:19:25 Sessions 3 Manual Loads 0 Difficulty Rogue Special Mode Winter2019/RPGLIKE Game No. 103 Rogue 103 Adventurer 0 Explorer 0 Win Type - Total 3 Types 2/0/0/1/0/0/0/0/0 Lore% 83 Gallery% 84 Achievement% 69 Wizard Run 0 Options --------- ASCII 0 Keyboard 0 Movement Numpad Keybinds 0 Fullscreen 1 Font 18/SmallcapsGlow Map View 76x50 Tactical HUD 1 Map Filters NONE Filters NONE Steam 1 RUN: 59ab1084-4023-4601-8dae-79a843044c6b